Workbook

Sheet Instructions

Sheet Meta data_sheet
A1: Ambient Monitoring Station | B1: Details | D1: Ambient Monitoring Results | E1: Details
A2: Location | B2: Breeza | D2: PM2.5 monitoring start (dd/mm/yyyy hh:mm) | E2: 2019-11-01
A3: Easting | B3: =VLOOKUP($B$2,'Meta data_lookup'!$A$2:$D$5,2,FALSE) -> 237993 | D3: PM2.5 monitoring end | E3: 2019-12-01
A4: Northing | B4: =VLOOKUP($B$2,'Meta data_lookup'!$A$2:$D$5,3,FALSE) -> 6542606 | D4: PM2.5 monitoring period (h) | E4: =(E3-E2)*24 -> 720
A5: Site elevation (m) | B5: =VLOOKUP($B$2,'Meta data_lookup'!$A$2:$D$5,4,FALSE) -> ND | D5: Number of valid PM2.5 results | E5: =COUNTIF('Raw data_sheet'!G2:G745,"Valid") -> 693
A6: Description of surrounding land use | B6: Agriculture | D6: Proportion of valid PM2.5 results (%) | E6: =E5/E4 -> 0.9625
A7: Typical sources impacting on the site | B7: Agriculture/Gravel roads | D7: PM10 monitoring start (dd/mm/yyyy hh:mm) | E7: 2019-11-01
A8: Site compliance with AS/NZS 3580.1.1:2007 | B8: Yes | D8: PM10 monitoring end | E8: 2019-12-01
A9: PM2.5 method compliance with AS/NZS 3580.9.13:2013 | B9: Yes | D9: PM10 monitoring period (h) | E9: =(E8-E7)*24 -> 720
A10: PM2.5 instrument make | B10: Thermo | D10: Number of valid PM10 results | E10: =COUNTIF('Raw data_sheet'!J2:J745,"Valid") -> 693
A11: PM2.5 instrument model | B11: 1405DF | D11: Proportion of valid PM10 results (%) | E11: =E10/E9 -> 0.9625
A12: PM2.5 instrument intake height (m) | B12: 3.5
A13: PM10 method compliance with AS 3580.9.8-2008 | B13: No*
A14: PM10 instrument make | B14: Thermo
A15: PM10 instrument model | B15: 1405DF
A16: PM10 instrument intake height (m) | B16: 3.5
A17: *The 1405DF TEOM used at this site measures PM10 indirectly rather than directly. The unit does however meet the intent of AS 3580.9.8-2008, and this method has been accredited by the USEPA. It is considered scientifically robust and is used extensively throughout NSW with EPA's knowledge and informal acceptance.

Sheet Meta data_lookup
A1: Location | B1: Easting | C1: Northing | D1: Site elevation (m)
A2: Maules Creek | B2: 225302 | C2: 6623037 | D2: ND
A3: Breeza | B3: 237993 | C3: 6542606 | D3: ND
A4: Will-gai | B4: 231804 | C4: 6596392 | D4: ND
A5: Werris Creek | B5: 276783 | C5: 6528734 | D5: ND

Sheet Raw data_sheet
A1: Year | B1: Month | C1: Day | D1: Hour | E1: Date and time | F1: PM2.5_hourly | G1: PM2.5_Data_Status | H1: PM2.5_24hr_rolling_average | I1: PM10_hourly | J1: PM10_Data_Status | K1: PM10_24hr_rolling_average | L1: Cause of data invalidity, if applicable | M1: Detailed comments | N1: PM2.5_hourly_valid_plot | O1: PM2.5_24hr_rolling_ave_valid_plot | P1: PM10_hourly_valid_plot | Q1: PM10_24hr_rolling_ave_valid_plot | R1: PM10_hourly_valid_plot_series | S1: PM10_24hr_rolling_average_valid_plot_series | T1: PM2.5_hourly_valid_plot_series | U1: PM2.5_24hr_rolling_average_valid_plot_series
A2: 2019 | B2: 11 | C2: 1 | D2: 0 | E2: =DATE(A2,B2,C2)+TIME(D2,0,0) -> 43770 | F2: 40.79 | G2: Valid | H2: 18.94 | I2: 53.93 | J2: Valid | K2: 51.1 | N2: =IF(G2="Valid", F2, NA()) -> 40.79 | O2: =IF(G2="Valid", H2, NA()) -> 18.94 | P2: =IF(J2="Valid", I2, NA()) -> 53.93 | Q2: =IF(J2="Valid", K2, NA()) -> 51.1 | R2: 53.93 | S2: 51.1 | T2: 40.79 | U2: 18.94
A3: =A2 -> 2019 | B3: =B2 -> 11 | C3: =C2 -> 1 | D3: =IF(D2=23,0,D2+1) -> 1 | E3: =E2+0.0416666666666666 -> 43770.04167 | F3: 31.4 | G3: Valid | H3: 19.89 | I3: 42.75 | J3: Valid | K3: 51.58 | N3: 31.4 | O3: 19.89 | P3: 42.75 | Q3: 51.58 | R3: 42.75 | S3: 51.58 | T3: 31.4 | U3: 19.89
A4: =A3 -> 2019 | B4: =B3 -> 11 | C4: 1 | D4: =IF(D3=23,0,D3+1) -> 2 | E4: =E3+0.0416666666666666 -> 43770.08333 | F4: 30.8 | G4: Valid | H4: 20.66 | I4: 43.16 | J4: Valid | K4: 52.04 | N4: 30.8 | O4: 20.66 | P4: 43.16 | Q4: 52.04 | R4: 43.16 | S4: 52.04 | T4: 30.8 | U4: 20.66
A5: 2019 | B5: 11 | C5: 1 | D5: 3 | E5: 43770.125 | F5: 33.5 | G5: Valid | H5: 21.54 | I5: 46.7 | J5: Valid | K5: 52.7 | N5: 33.5 | O5: 21.54 | P5: 46.7 | Q5: 52.7 | R5: 46.7 | S5: 52.7 | T5: 33.5 | U5: 21.54
A6: 2019 | B6: 11 | C6: 1 | D6: 4 | E6: 43770.16667 | F6: 37.41 | G6: Valid | H6: 22.73 | I6: 54.06 | J6: Valid | K6: 53.74 | N6: 37.41 | O6: 22.73 | P6: 54.06 | Q6: 53.74 | R6: 54.06 | S6: 53.74 | T6: 37.41 | U6: 22.73
A7: 2019 | B7: 11 | C7: 1 | D7: 5 | E7: 43770.20833 | F7: 31.95 | G7: Valid | H7: 23.68 | I7: 48.37 | J7: Valid | K7: 54.55 | N7: 31.95 | O7: 23.68 | P7: 48.37 | Q7: 54.55 | R7: 48.37 | S7: 54.55 | T7: 31.95 | U7: 23.68
A8: 2019 | B8: 11 | C8: 1 | D8: 6 | E8: 43770.25 | F8: 32.13 | G8: Valid | H8: 24.37 | I8: 46.14 | J8: Valid | K8: 55.01 | N8: 32.13 | O8: 24.37 | P8: 46.14 | Q8: 55.01 | R8: 46.14 | S8: 55.01 | T8: 32.13 | U8: 24.37
A9: 2019 | B9: 11 | C9: 1 | D9: 7 | E9: 43770.29167 | F9: 32.34 | G9: Valid | H9: 25.16 | I9: 56.37 | J9: Valid | K9: 55.81 | N9: 32.34 | O9: 25.16 | P9: 56.37 | Q9: 55.81 | R9: 56.37 | S9: 55.81 | T9: 32.34 | U9: 25.16
A10: 2019 | B10: 11 | C10: 1 | D10: 8 | E10: 43770.33333 | F10: 28.31 | G10: Valid | H10: 25.8 | I10: 49.92 | J10: Valid | K10: 56.36 | N10: 28.31 | O10: 25.8 | P10: 49.92 | Q10: 56.36 | R10: 49.92 | S10: 56.36 | T10: 28.31 | U10: 25.8
A11: 2019 | B11: 11 | C11: 1 | D11: 9 | E11: 43770.375 | F11: 33.6 | G11: Valid | H11: 26.62 | I11: 48.63 | J11: Valid | K11: 56.14 | N11: 33.6 | O11: 26.62 | P11: 48.63 | Q11: 56.14 | R11: 48.63 | S11: 56.14 | T11: 33.6 | U11: 26.62
A12: 2019 | B12: 11 | C12: 1 | D12: 10 | E12: 43770.41667 | F12: 30.42 | G12: Valid | H12: 27.37 | I12: 44.02 | J12: Valid | K12: 56.07 | N12: 30.42 | O12: 27.37 | P12: 44.02 | Q12: 56.07 | R12: 44.02 | S12: 56.07 | T12: 30.42 | U12: 27.37
A13: 2019 | B13: 11 | C13: 1 | D13: 11 | E13: 43770.45833 | F13: 33.54 | G13: Valid | H13: 28.32 | I13: 49.79 | J13: Valid | K13: 56.53 | N13: 33.54 | O13: 28.32 | P13: 49.79 | Q13: 56.53 | R13: 49.79 | S13: 56.53 | T13: 33.54 | U13: 28.32
A14: 2019 | B14: 11 | C14: 1 | D14: 12 | E14: 43770.5 | F14: 29.51 | G14: Valid | H14: 28.97 | I14: 46.29 | J14: Valid | K14: 56.22 | N14: 29.51 | O14: 28.97 | P14: 46.29 | Q14: 56.22 | R14: 46.29 | S14: 56.22 | T14: 29.51 | U14: 28.97
A15: 2019 | B15: 11 | C15: 1 | D15: 13 | E15: 43770.54167 | F15: 27.67 | G15: Valid | H15: 29.72 | I15: 62.69 | J15: Valid | K15: 57.31 | N15: 27.67 | O15: 29.72 | P15: 62.69 | Q15: 57.31 | R15: 62.69 | S15: 57.31 | T15: 27.67 | U15: 29.72
A16: 2019 | B16: 11 | C16: 1 | D16: 14 | E16: 43770.58333 | F16: 26.82 | G16: Valid | H16: 29.71 | I16: 43.19 | J16: Valid | K16: 57.04 | N16: 26.82 | O16: 29.71 | P16: 43.19 | Q16: 57.04 | R16: 43.19 | S16: 57.04 | T16: 26.82 | U16: 29.71
A17: 2019 | B17: 11 | C17: 1 | D17: 15 | E17: 43770.625 | F17: 33.31 | G17: Valid | H17: 30.07 | I17: 50.42 | J17: Valid | K17: 57.01 | N17: 33.31 | O17: 30.07 | P17: 50.42 | Q17: 57.01 | R17: 50.42 | S17: 57.01 | T17: 33.31 | U17: 30.07
A18: 2019 | B18: 11 | C18: 1 | D18: 16 | E18: 43770.66667 | F18: 37.01 | G18: Valid | H18: 30.44 | I18: 50.04 | J18: Valid | K18: 56.86 | N18: 37.01 | O18: 30.44 | P18: 50.04 | Q18: 56.86 | R18: 50.04 | S18: 56.86 | T18: 37.01 | U18: 30.44
A19: 2019 | B19: 11 | C19: 1 | D19: 17 | E19: 43770.70833 | F19: 36.91 | G19: Valid | H19: 30.7 | I19: 52.57 | J19: Valid | K19: 48.67 | N19: 36.91 | O19: 30.7 | P19: 52.57 | Q19: 48.67 | R19: 52.57 | S19: 48.67 | T19: 36.91 | U19: 30.7
A20: 2019 | B20: 11 | C20: 1 | D20: 18 | E20: 43770.75 | F20: 32.57 | G20: Valid | H20: 31.24 | I20: 45.28 | J20: Valid | K20: 48.12 | N20: 32.57 | O20: 31.24 | P20: 45.28 | Q20: 48.12 | R20: 45.28 | S20: 48.12 | T20: 32.57 | U20: 31.24
A21: 2019 | B21: 11 | C21: 1 | D21: 19 | E21: 43770.79167 | F21: 30.87 | G21: Valid | H21: 31.91 | I21: 42.56 | J21: Valid | K21: 48.73 | N21: 30.87 | O21: 31.91 | P21: 42.56 | Q21: 48.73 | R21: 42.56 | S21: 48.73 | T21: 30.87 | U21: 31.91
A22: 2019 | B22: 11 | C22: 1 | D22: 20 | E22: 43770.83333 | F22: 33.64 | G22: Valid | H22: 32.29 | I22: 71.08 | J22: Valid | K22: 50.08 | N22: 33.64 | O22: 32.29 | P22: 71.08 | Q22: 50.08 | R22: 71.08 | S22: 50.08 | T22: 33.64 | U22: 32.29
A23: 2019 | B23: 11 | C23: 1 | D23: 21 | E23: 43770.875 | F23: 33.44 | G23: Valid | H23: 32.8 | I23: 62.4 | J23: Valid | K23: 50.57 | N23: 33.44 | O23: 32.8 | P23: 62.4 | Q23: 50.57 | R23: 62.4 | S23: 50.57 | T23: 33.44 | U23: 32.8
A24: 2019 | B24: 11 | C24: 1 | D24: 22 | E24: 43770.91667 | F24: 48.41 | G24: Valid | H24: 33.82 | I24: 65.95 | J24: Valid | K24: 51.47 | N24: 48.41 | O24: 33.82 | P24: 65.95 | Q24: 51.47 | R24: 65.95 | S24: 51.47 | T24: 48.41 | U24: 33.82
A25: 2019 | B25: =B24 -> 11 | C25: =C24 -> 1 | D25: 23 | E25: 43770.95833 | F25: 39.46 | G25: Valid | H25: 33.58 | I25: 51.11 | J25: Valid | K25: 51.14 | N25: 39.46 | O25: 33.58 | P25: 51.11 | Q25: 51.14 | R25: 51.11 | S25: 51.14 | T25: 39.46 | U25: 33.58
A26: 2019 | B26: =B25 -> 11 | C26: =C2+1 -> 2 | D26: 0 | E26: 43771 | F26: 26.44 | G26: Valid | H26: 32.98 | I26: 38.51 | J26: Valid | K26: 50.5 | N26: 26.44 | O26: 32.98 | P26: 38.51 | Q26: 50.5 | R26: 38.51 | S26: 50.5 | T26: 26.44 | U26: 32.98
A27: 2019 | B27: =B26 -> 11 | C27: =C3+1 -> 2 | D27: 1 | E27: 43771.04167 | F27: 23.73 | G27: Valid | H27: 32.66 | I27: 36.43 | J27: Valid | K27: 50.24 | N27: 23.73 | O27: 32.66 | P27: 36.43 | Q27: 50.24 | R27: 36.43 | S27: 50.24 | T27: 23.73 | U27: 32.66
A28: 2019 | B28: 11 | C28: 2 | D28: 2 | E28: 43771.08333 | F28: 19.05 | G28: Valid | H28: 32.17 | I28: 36.87 | J28: Valid | K28: 49.97 | N28: 19.05 | O28: 32.17 | P28: 36.87 | Q28: 49.97 | R28: 36.87 | S28: 49.97 | T28: 19.05 | U28: 32.17
A29: 2019 | B29: 11 | C29: 2 | D29: 3 | E29: 43771.125 | F29: 13.15 | G29: Valid | H29: 31.32 | I29: 27.73 | J29: Valid | K29: 49.18 | N29: 13.15 | O29: 31.32 | P29: 27.73 | Q29: 49.18 | R29: 27.73 | S29: 49.18 | T29: 13.15 | U29: 31.32
A30: 2019 | B30: 11 | C30: 2 | D30: 4 | E30: 43771.16667 | F30: 12.47 | G30: Valid | H30: 30.28 | I30: 24.52 | J30: Valid | K30: 47.95 | N30: 12.47 | O30: 30.28 | P30: 24.52 | Q30: 47.95 | R30: 24.52 | S30: 47.95 | T30: 12.47 | U30: 30.28
A31: 2019 | B31: 11 | C31: 2 | D31: 5 | E31: 43771.20833 | F31: 10 | G31: Valid | H31: 29.37 | I31: 17.59 | J31: Valid | K31: 46.67 | N31: 10 | O31: 29.37 | P31: 17.59 | Q31: 46.67 | R31: 17.59 | S31: 46.67 | T31: 10 | U31: 29.37
A32: 2019 | B32: 11 | C32: 2 | D32: 6 | E32: 43771.25 | F32: 9.51 | G32: Valid | H32: 28.42 | I32: 19.16 | J32: Valid | K32: 45.55 | N32: 9.51 | O32: 28.42 | P32: 19.16 | Q32: 45.55 | R32: 19.16 | S32: 45.55 | T32: 9.51 | U32: 28.42
A33: 2019 | B33: 11 | C33: 2 | D33: 7 | E33: 43771.29167 | F33: 8.49 | G33: Valid | H33: 27.43 | I33: 17.38 | J33: Valid | K33: 43.92 | N33: 8.49 | O33: 27.43 | P33: 17.38 | Q33: 43.92 | R33: 17.38 | S33: 43.92 | T33: 8.49 | U33: 27.43
A34: 2019 | B34: 11 | C34: 2 | D34: 8 | E34: 43771.33333 | F34: 8.08 | G34: Valid | H34: 26.59 | I34: 18.12 | J34: Valid | K34: 42.6 | N34: 8.08 | O34: 26.59 | P34: 18.12 | Q34: 42.6 | R34: 18.12 | S34: 42.6 | T34: 8.08 | U34: 26.59
A35: 2019 | B35: 11 | C35: 2 | D35: 9 | E35: 43771.375 | F35: 6.64 | G35: Valid | H35: 25.46 | I35: 13.74 | J35: Valid | K35: 41.14 | N35: 6.64 | O35: 25.46 | P35: 13.74 | Q35: 41.14 | R35: 13.74 | S35: 41.14 | T35: 6.64 | U35: 25.46
A36: 2019 | B36: 11 | C36: 2 | D36: 10 | E36: 43771.41667 | F36: 12.68 | G36: Valid | H36: 24.73 | I36: 19.79 | J36: Valid | K36: 40.13 | N36: 12.68 | O36: 24.73 | P36: 19.79 | Q36: 40.13 | R36: 19.79 | S36: 40.13 | T36: 12.68 | U36: 24.73
A37: 2019 | B37: 11 | C37: 2 | D37: 11 | E37: 43771.45833 | F37: 13.95 | G37: Valid | H37: 23.91 | I37: 23.86 | J37: Valid | K37: 39.05 | N37: 13.95 | O37: 23.91 | P37: 23.86 | Q37: 39.05 | R37: 23.86 | S37: 39.05 | T37: 13.95 | U37: 23.91
A38: 2019 | B38: 11 | C38: 2 | D38: 12 | E38: 43771.5 | F38: 17.17 | G38: Valid | H38: 23.39 | I38: 27.48 | J38: Valid | K38: 38.27 | N38: 17.17 | O38: 23.39 | P38: 27.48 | Q38: 38.27 | R38: 27.48 | S38: 38.27 | T38: 17.17 | U38: 23.39
A39: 2019 | B39: 11 | C39: 2 | D39: 13 | E39: 43771.54167 | F39: 10.94 | G39: Valid | H39: 22.7 | I39: 22.21 | J39: Valid | K39: 36.58 | N39: 10.94 | O39: 22.7 | P39: 22.21 | Q39: 36.58 | R39: 22.21 | S39: 36.58 | T39: 10.94 | U39: 22.7
A40: 2019 | B40: 11 | C40: 2 | D40: 14 | E40: 43771.58333 | F40: 13.57 | G40: Valid | H40: 22.15 | I40: 22.49 | J40: Valid | K40: 35.72 | N40: 13.57 | O40: 22.15 | P40: 22.49 | Q40: 35.72 | R40: 22.49 | S40: 35.72 | T40: 13.57 | U40: 22.15
A41: 2019 | B41: 11 | C41: 2 | D41: 15 | E41: 43771.625 | F41: 12 | G41: Valid | H41: 21.26 | I41: 22.43 | J41: Valid | K41: 34.55 | N41: 12 | O41: 21.26 | P41: 22.43 | Q41: 34.55 | R41: 22.43 | S41: 34.55 | T41: 12 | U41: 21.26
A42: 2019 | B42: 11 | C42: 2 | D42: 16 | E42: 43771.66667 | F42: 15.04 | G42: Valid | H42: 20.34 | I42: 28.32 | J42: Valid | K42: 33.65 | N42: 15.04 | O42: 20.34 | P42: 28.32 | Q42: 33.65 | R42: 28.32 | S42: 33.65 | T42: 15.04 | U42: 20.34
A43: 2019 | B43: 11 | C43: 2 | D43: 17 | E43: 43771.70833 | F43: 15.58 | G43: Valid | H43: 19.45 | I43: 31.96 | J43: Valid | K43: 32.79 | N43: 15.58 | O43: 19.45 | P43: 31.96 | Q43: 32.79 | R43: 31.96 | S43: 32.79 | T43: 15.58 | U43: 19.45
A44: 2019 | B44: 11 | C44: 2 | D44: 18 | E44: 43771.75 | F44: 12.82 | G44: Valid | H44: 18.63 | I44: 32.69 | J44: Valid | K44: 32.27 | N44: 12.82 | O44: 18.63 | P44: 32.69 | Q44: 32.27 | R44: 32.69 | S44: 32.27 | T44: 12.82 | U44: 18.63
A45: 2019 | B45: 11 | C45: 2 | D45: 19 | E45: 43771.79167 | F45: 14.42 | G45: Valid | H45: 17.95 | I45: 35.45 | J45: Valid | K45: 31.97 | N45: 14.42 | O45: 17.95 | P45: 35.45 | Q45: 31.97 | R45: 35.45 | S45: 31.97 | T45: 14.42 | U45: 17.95
A46: 2019 | B46: 11 | C46: 2 | D46: 20 | E46: 43771.83333 | F46: 21.43 | G46: Valid | H46: 17.44 | I46: 41.17 | J46: Valid | K46: 30.72 | N46: 21.43 | O46: 17.44 | P46: 41.17 | Q46: 30.72 | R46: 41.17 | S46: 30.72 | T46: 21.43 | U46: 17.44
A47: 2019 | B47: 11 | C47: 2 | D47: 21 | E47: 43771.875 | F47: 13.03 | G47: Valid | H47: 16.59 | I47: 34.39 | J47: Valid | K47: 29.56 | N47: 13.03 | O47: 16.59 | P47: 34.39 | Q47: 29.56 | R47: 34.39 | S47: 29.56 | T47: 13.03 | U47: 16.59
A48: 2019 | B48: 11 | C48: 2 | D48: 22 | E48: 43771.91667 | F48: 4.21 | G48: Valid | H48: 14.74 | I48: 16.99 | J48: Valid | K48: 27.52 | N48: 4.21 | O48: 14.74 | P48: 16.99 | Q48: 27.52 | R48: 16.99 | S48: 27.52 | T48: 4.21 | U48: 14.74
A49: 2019 | B49: 11 | C49: 2 | D49: 23 | E49: 43771.95833 | F49: 5.52 | G49: Valid | H49: 13.33 | I49: 16.67 | J49: Valid | K49: 26.08 | N49: 5.52 | O49: 13.33 | P49: 16.67 | Q49: 26.08 | R49: 16.67 | S49: 26.08 | T49: 5.52 | U49: 13.33
A50: 2019 | B50: 11 | C50: 3 | D50: 0 | E50: 43772 | F50: 4.08 | G50: Valid | H50: 12.4 | I50: 15.94 | J50: Valid | K50: 25.14 | N50: 4.08 | O50: 12.4 | P50: 15.94 | Q50: 25.14 | R50: 15.94 | S50: 25.14 | T50: 4.08 | U50: 12.4
A51: 2019 | B51: 11 | C51: 3 | D51: 1 | E51: 43772.04167 | F51: 0.04 | G51: Valid | H51: 11.41 | I51: 12.88 | J51: Valid | K51: 24.16 | N51: 0.04 | O51: 11.41 | P51: 12.88 | Q51: 24.16 | R51: 12.88 | S51: 24.16 | T51: 0.04 | U51: 11.41
A52: 2019 | B52: 11 | C52: 3 | D52: 2 | E52: 43772.08333 | F52: 6.44 | G52: Valid | H52: 10.89 | I52: 17.97 | J52: Valid | K52: 23.37 | N52: 6.44 | O52: 10.89 | P52: 17.97 | Q52: 23.37 | R52: 17.97 | S52: 23.37 | T52: 6.44 | U52: 10.89
A53: 2019 | B53: 11 | C53: 3 | D53: 3 | E53: 43772.125 | F53: 3.21 | G53: Valid | H53: 10.47 | I53: 14.98 | J53: Valid | K53: 22.84 | N53: 3.21 | O53: 10.47 | P53: 14.98 | Q53: 22.84 | R53: 14.98 | S53: 22.84 | T53: 3.21 | U53: 10.47
A54: 2019 | B54: 11 | C54: 3 | D54: 4 | E54: 43772.16667 | F54: 7.18 | G54: Valid | H54: 10.25 | I54: 15.87 | J54: Valid | K54: 22.48 | N54: 7.18 | O54: 10.25 | P54: 15.87 | Q54: 22.48 | R54: 15.87 | S54: 22.48 | T54: 7.18 | U54: 10.25
A55: 2019 | B55: 11 | C55: 3 | D55: 5 | E55: 43772.20833 | F55: 6.08 | G55: Valid | H55: 10.09 | I55: 14.8 | J55: Valid | K55: 22.36 | N55: 6.08 | O55: 10.09 | P55: 14.8 | Q55: 22.36 | R55: 14.8 | S55: 22.36 | T55: 6.08 | U55: 10.09
A56: 2019 | B56: 11 | C56: 3 | D56: 6 | E56: 43772.25 | F56: 9.65 | G56: Valid | H56: 10.09 | I56: 18.73 | J56: Valid | K56: 22.35 | N56: 9.65 | O56: 10.09 | P56: 18.73 | Q56: 22.35 | R56: 18.73 | S56: 22.35 | T56: 9.65 | U56: 10.09
A57: 2019 | B57: 11 | C57: 3 | D57: 7 | E57: 43772.29167 | F57: 8.16 | G57: Valid | H57: 10.08 | I57: 19.28 | J57: Valid | K57: 22.43 | N57: 8.16 | O57: 10.08 | P57: 19.28 | Q57: 22.43 | R57: 19.28 | S57: 22.43 | T57: 8.16 | U57: 10.08
A58: 2019 | B58: 11 | C58: 3 | D58: 8 | E58: 43772.33333 | F58: 3.48 | G58: Valid | H58: 9.89 | I58: 15.2 | J58: Valid | K58: 22.3 | N58: 3.48 | O58: 9.89 | P58: 15.2 | Q58: 22.3 | R58: 15.2 | S58: 22.3 | T58: 3.48 | U58: 9.89
A59: 2019 | B59: 11 | C59: 3 | D59: 9 | E59: 43772.375 | F59: 4.89 | G59: Valid | H59: 9.82 | I59: 15.64 | J59: Valid | K59: 22.38 | N59: 4.89 | O59: 9.82 | P59: 15.64 | Q59: 22.38 | R59: 15.64 | S59: 22.38 | T59: 4.89 | U59: 9.82
A60: 2019 | B60: 11 | C60: 3 | D60: 10 | E60: 43772.41667 | F60: 5.49 | G60: Valid | H60: 9.52 | I60: 16.98 | J60: Valid | K60: 22.27 | N60: 5.49 | O60: 9.52 | P60: 16.98 | Q60: 22.27 | R60: 16.98 | S60: 22.27 | T60: 5.49 | U60: 9.52
A61: 2019 | B61: 11 | C61: 3 | D61: 11 | E61: 43772.45833 | F61: 6.8 | G61: Valid | H61: 9.22 | I61: 32 | J61: Valid | K61: 22.61 | N61: 6.8 | O61: 9.22 | P61: 32 | Q61: 22.61 | R61: 32 | S61: 22.61 | T61: 6.8 | U61: 9.22
A62: 2019 | B62: 11 | C62: 3 | D62: 12 | E62: 43772.5 | F62: 5.67 | G62: Valid | H62: 8.74 | I62: 28.27 | J62: Valid | K62: 22.64 | N62: 5.67 | O62: 8.74 | P62: 28.27 | Q62: 22.64 | R62: 28.27 | S62: 22.64 | T62: 5.67 | U62: 8.74
A63: 2019 | B63: 11 | C63: 3 | D63: 13 | E63: 43772.54167 | F63: 9.55 | G63: Valid | H63: 8.68 | I63: 87.77 | J63: Valid | K63: 25.37 | N63: 9.55 | O63: 8.68 | P63: 87.77 | Q63: 25.37 | R63: 87.77 | S63: 25.37 | T63: 9.55 | U63: 8.68
A64: 2019 | B64: 11 | C64: 3 | D64: 14 | E64: 43772.58333 | F64: 12.34 | G64: Valid | H64: 8.63 | I64: 47.66 | J64: Valid | K64: 26.42 | N64: 12.34 | O64: 8.63 | P64: 47.66 | Q64: 26.42 | R64: 47.66 | S64: 26.42 | T64: 12.34 | U64: 8.63
A65: 2019 | B65: 11 | C65: 3 | D65: 15 | E65: 43772.625 | F65: 6.89 | G65: Valid | H65: 8.42 | I65: 33.86 | J65: Valid | K65: 26.89 | N65: 6.89 | O65: 8.42 | P65: 33.86 | Q65: 26.89 | R65: 33.86 | S65: 26.89 | T65: 6.89 | U65: 8.42
A66: 2019 | B66: 11 | C66: 3 | D66: 16 | E66: 43772.66667 | F66: 12.99 | G66: Valid | H66: 8.33 | I66: 109.8 | J66: Valid | K66: 30.29 | N66: =IF(G66="Valid", F66, NA()) -> 12.99 | O66: =IF(G66="Valid", H66, NA()) -> 8.33 | P66: =IF(J66="Valid", I66, NA()) -> 109.8 | Q66: =IF(J66="Valid", K66, NA()) -> 30.29 | R66: 109.8 | S66: 30.29 | T66: 12.99 | U66: 8.33
A67: 2019 | B67: 11 | C67: 3 | D67: 17 | E67: 43772.70833 | F67: 3.84 | G67: Valid | H67: 7.84 | I67: 56.45 | J67: Valid | K67: 31.31 | N67: 3.84 | O67: 7.84 | P67: 56.45 | Q67: 31.31 | R67: 56.45 | S67: 31.31 | T67: 3.84 | U67: 7.84
A68: =A67 -> 2019 | B68: 11 | C68: 3 | D68: =IF(D67=23,0,D67+1) -> 18 | E68: =E67+0.0416666666666666 -> 43772.75 | F68: 5.43 | G68: Valid | H68: 7.53 | I68: 24.59 | J68: Valid | K68: 30.97 | N68: 5.43 | O68: 7.53 | P68: 24.59 | Q68: 30.97 | R68: 24.59 | S68: 30.97 | T68: 5.43 | U68: 7.53
A69: 2019 | B69: 11 | C69: 3 | D69: 19 | E69: 43772.79167 | F69: 5.29 | G69: Valid | H69: 7.15 | I69: 15.68 | J69: Valid | K69: 30.15 | N69: 5.29 | O69: 7.15 | P69: 15.68 | Q69: 30.15 | R69: 15.68 | S69: 30.15 | T69: 5.29 | U69: 7.15
A70: 2019 | B70: 11 | C70: 3 | D70: 20 | E70: 43772.83333 | F70: 1.39 | G70: Valid | H70: 6.32 | I70: 8.3 | J70: Valid | K70: 28.78 | N70: 1.39 | O70: 6.32 | P70: 8.3 | Q70: 28.78 | R70: 8.3 | S70: 28.78 | T70: 1.39 | U70: 6.32
A71: 2019 | B71: 11 | C71: 3 | D71: 21 | E71: 43772.875 | F71: 1.73 | G71: Valid | H71: 5.85 | I71: 6.62 | J71: Valid | K71: 27.62 | N71: 1.73 | O71: 5.85 | P71: 6.62 | Q71: 27.62 | R71: 6.62 | S71: 27.62 | T71: 1.73 | U71: 5.85
A72: 2019 | B72: 11 | C72: 3 | D72: 22 | E72: 43772.91667 | F72: 5.57 | G72: Valid | H72: 5.9 | I72: 9.74 | J72: Valid | K72: 27.32 | N72: 5.57 | O72: 5.9 | P72: 9.74 | Q72: 27.32 | R72: 9.74 | S72: 27.32 | T72: 5.57 | U72: 5.9
A73: 2019 | B73: 11 | C73: 3 | D73: 23 | E73: 43772.95833 | F73: 4.21 | G73: Valid | H73: 5.85 | I73: 7.15 | J73: Valid | K73: 26.92 | N73: 4.21 | O73: 5.85 | P73: 7.15 | Q73: 26.92 | R73: 7.15 | S73: 26.92 | T73: 4.21 | U73: 5.85
A74: 2019 | B74: 11 | C74: 4 | D74: 0 | E74: 43773 | F74: 10.82 | G74: Valid | H74: 6.13 | I74: 14.01 | J74: Valid | K74: 26.84 | N74: 10.82 | O74: 6.13 | P74: 14.01 | Q74: 26.84 | R74: 14.01 | S74: 26.84 | T74: 10.82 | U74: 6.13
A75: 2019 | B75: 11 | C75: 4 | D75: 1 | E75: 43773.04167 | F75: 4.91 | G75: Valid | H75: 6.33 | I75: 9.53 | J75: Valid | K75: 26.7 | N75: 4.91 | O75: 6.33 | P75: 9.53 | Q75: 26.7 | R75: 9.53 | S75: 26.7 | T75: 4.91 | U75: 6.33
A76: 2019 | B76: 11 | C76: 4 | D76: 2 | E76: 43773.08333 | F76: 4.38 | G76: Valid | H76: 6.25 | I76: 8.23 | J76: Valid | K76: 26.3 | N76: 4.38 | O76: 6.25 | P76: 8.23 | Q76: 26.3 | R76: 8.23 | S76: 26.3 | T76: 4.38 | U76: 6.25
A77: 2019 | B77: 11 | C77: 4 | D77: 3 | E77: 43773.125 | F77: 4.96 | G77: Valid | H77: 6.32 | I77: 8.4 | J77: Valid | K77: 26.02 | N77: 4.96 | O77: 6.32 | P77: 8.4 | Q77: 26.02 | R77: 8.4 | S77: 26.02 | T77: 4.96 | U77: 6.32
A78: 2019 | B78: 11 | C78: 4 | D78: 4 | E78: 43773.16667 | F78: 0.91 | G78: Valid | H78: 6.06 | I78: 3 | J78: Valid | K78: 25.49 | N78: 0.91 | O78: 6.06 | P78: 3 | Q78: 25.49 | R78: 3 | S78: 25.49 | T78: 0.91 | U78: 6.06
A79: 2019 | B79: 11 | C79: 4 | D79: 5 | E79: 43773.20833 | F79: =NA() ->  | G79: Invalid | H79: =NA() ->  | I79: =NA() ->  | J79: Invalid | K79: =-NA() ->  | L79: Pump Failure | M79: High negative removed
A80: 2019 | B80: 11 | C80: 4 | D80: 6 | E80: 43773.25 | F80: 2.08 | G80: Valid | H80: 5.73 | I80: 4.01 | J80: Valid | K80: 24.25 | N80: 2.08 | O80: 5.73 | P80: 4.01 | Q80: 24.25 | R80: 4.01 | S80: 24.25 | T80: 2.08 | U80: 5.73
A81: 2019 | B81: 11 | C81: 4 | D81: 7 | E81: 43773.29167 | F81: 2.37 | G81: Valid | H81: 5.48 | I81: 4.32 | J81: Valid | K81: 23.62 | N81: 2.37 | O81: 5.48 | P81: 4.32 | Q81: 23.62 | R81: 4.32 | S81: 23.62 | T81: 2.37 | U81: 5.48
A82: 2019 | B82: 11 | C82: 4 | D82: 8 | E82: 43773.33333 | F82: 5.14 | G82: Valid | H82: 5.55 | I82: 7.3 | J82: Valid | K82: 23.29 | N82: 5.14 | O82: 5.55 | P82: 7.3 | Q82: 23.29 | R82: 7.3 | S82: 23.29 | T82: 5.14 | U82: 5.55
A83: 2019 | B83: 11 | C83: 4 | D83: 9 | E83: 43773.375 | F83: 3.63 | G83: Valid | H83: 5.5 | I83: 5.78 | J83: Valid | K83: 22.88 | N83: 3.63 | O83: 5.5 | P83: 5.78 | Q83: 22.88 | R83: 5.78 | S83: 22.88 | T83: 3.63 | U83: 5.5
A84: 2019 | B84: 11 | C84: 4 | D84: 10 | E84: 43773.41667 | F84: 1.28 | G84: Valid | H84: 5.31 | I84: 3.23 | J84: Valid | K84: 22.31 | N84: 1.28 | O84: 5.31 | P84: 3.23 | Q84: 22.31 | R84: 3.23 | S84: 22.31 | T84: 1.28 | U84: 5.31
A85: 2019 | B85: 11 | C85: 4 | D85: 11 | E85: 43773.45833 | F85: 1.63 | G85: Valid | H85: 5.09 | I85: 1.74 | J85: Valid | K85: 21.05 | N85: 1.63 | O85: 5.09 | P85: 1.74 | Q85: 21.05 | R85: 1.74 | S85: 21.05 | T85: 1.63 | U85: 5.09
A86: 2019 | B86: 11 | C86: 4 | D86: 12 | E86: 43773.5 | F86: -1.72 | G86: Valid | H86: 4.77 | I86: 0.73 | J86: Valid | K86: 19.9 | N86: -1.72 | O86: 4.77 | P86: 0.73 | Q86: 19.9 | R86: 0.73 | S86: 19.9 | T86: -1.72 | U86: 4.77
A87: 2019 | B87: 11 | C87: 4 | D87: 13 | E87: 43773.54167 | F87: 5.39 | G87: Valid | H87: 4.59 | I87: 9.41 | J87: Valid | K87: 16.64 | N87: 5.39 | O87: 4.59 | P87: 9.41 | Q87: 16.64 | R87: 9.41 | S87: 16.64 | T87: 5.39 | U87: 4.59
A88: 2019 | B88: 11 | C88: 4 | D88: 14 | E88: 43773.58333 | F88: 5.79 | G88: Valid | H88: 4.3 | I88: 8.11 | J88: Valid | K88: 14.99 | N88: 5.79 | O88: 4.3 | P88: 8.11 | Q88: 14.99 | R88: 8.11 | S88: 14.99 | T88: 5.79 | U88: 4.3
A89: 2019 | B89: 11 | C89: 4 | D89: 15 | E89: 43773.625 | F89: 9.4 | G89: Valid | H89: 4.41 | I89: 12.49 | J89: Valid | K89: 14.1 | N89: 9.4 | O89: 4.41 | P89: 12.49 | Q89: 14.1 | R89: 12.49 | S89: 14.1 | T89: 9.4 | U89: 4.41
A90: 2019 | B90: 11 | C90: 4 | D90: 16 | E90: 43773.66667 | F90: 9.73 | G90: Valid | H90: 4.27 | I90: 11.6 | J90: Valid | K90: 10.01 | N90: 9.73 | O90: 4.27 | P90: 11.6 | Q90: 10.01 | R90: 11.6 | S90: 10.01 | T90: 9.73 | U90: 4.27
A91: 2019 | B91: =B90 -> 11 | C91: =C67+1 -> 4 | D91: 17 | E91: 43773.70833 | F91: 6.92 | G91: Valid | H91: 4.4 | I91: 10.84 | J91: Valid | K91: 8.11 | N91: 6.92 | O91: 4.4 | P91: 10.84 | Q91: 8.11 | R91: 10.84 | S91: 8.11 | T91: 6.92 | U91: 4.4
A92: 2019 | B92: 11 | C92: 4 | D92: 18 | E92: 43773.75 | F92: 6.62 | G92: Valid | H92: 4.45 | I92: 7.07 | J92: Valid | K92: 7.38 | N92: 6.62 | O92: 4.45 | P92: 7.07 | Q92: 7.38 | R92: 7.07 | S92: 7.38 | T92: 6.62 | U92: 4.45
A93: 2019 | B93: 11 | C93: 4 | D93: 19 | E93: 43773.79167 | F93: 5.61 | G93: Valid | H93: 4.47 | I93: 7 | J93: Valid | K93: 7.01 | N93: 5.61 | O93: 4.47 | P93: 7 | Q93: 7.01 | R93: 7 | S93: 7.01 | T93: 5.61 | U93: 4.47
A94: 2019 | B94: 11 | C94: 4 | D94: 20 | E94: 43773.83333 | F94: 7.56 | G94: Valid | H94: 4.74 | I94: 11.62 | J94: Valid | K94: 7.15 | N94: 7.56 | O94: 4.74 | P94: 11.62 | Q94: 7.15 | R94: 11.62 | S94: 7.15 | T94: 7.56 | U94: 4.74
A95: 2019 | B95: 11 | C95: 4 | D95: 21 | E95: 43773.875 | F95: 4.86 | G95: Valid | H95: 4.87 | I95: 8.18 | J95: Valid | K95: 7.22 | N95: 4.86 | O95: 4.87 | P95: 8.18 | Q95: 7.22 | R95: 8.18 | S95: 7.22 | T95: 4.86 | U95: 4.87
A96: 2019 | B96: 11 | C96: 4 | D96: 22 | E96: 43773.91667 | F96: 1.19 | G96: Valid | H96: 4.68 | I96: 4.78 | J96: Valid | K96: 7.01 | N96: 1.19 | O96: 4.68 | P96: 4.78 | Q96: 7.01 | R96: 4.78 | S96: 7.01 | T96: 1.19 | U96: 4.68
A97: 2019 | B97: 11 | C97: 4 | D97: 23 | E97: 43773.95833 | F97: 2.3 | G97: Valid | H97: 4.6 | I97: 5.34 | J97: Valid | K97: 6.94 | N97: 2.3 | O97: 4.6 | P97: 5.34 | Q97: 6.94 | R97: 5.34 | S97: 6.94 | T97: 2.3 | U97: 4.6
A98: 2019 | B98: 11 | C98: 5 | D98: 0 | E98: 43774 | F98: 6.39 | G98: Valid | H98: 4.41 | I98: 9.85 | J98: Valid | K98: 6.76 | N98: 6.39 | O98: 4.41 | P98: 9.85 | Q98: 6.76 | R98: 9.85 | S98: 6.76 | T98: 6.39 | U98: 4.41
A99: 2019 | B99: 11 | C99: 5 | D99: 1 | E99: 43774.04167 | F99: 1.9 | G99: Valid | H99: 4.27 | I99: 4.95 | J99: Valid | K99: 6.57 | N99: 1.9 | O99: 4.27 | P99: 4.95 | Q99: 6.57 | R99: 4.95 | S99: 6.57 | T99: 1.9 | U99: 4.27
A100: 2019 | B100: 11 | C100: 5 | D100: 2 | E100: 43774.08333 | F100: 4.57 | G100: Valid | H100: 4.28 | I100: 6.61 | J100: Valid | K100: 6.5 | N100: 4.57 | O100: 4.28 | P100: 6.61 | Q100: 6.5 | R100: 6.61 | S100: 6.5 | T100: 4.57 | U100: 4.28
A101: 2019 | B101: 11 | C101: 5 | D101: 3 | E101: 43774.125 | F101: 3.48 | G101: Valid | H101: 4.22 | I101: 6.25 | J101: Valid | K101: 6.41 | N101: 3.48 | O101: 4.22 | P101: 6.25 | Q101: 6.41 | R101: 6.25 | S101: 6.41 | T101: 3.48 | U101: 4.22
A102: 2019 | B102: 11 | C102: 5 | D102: 4 | E102: 43774.16667 | F102: 3.59 | G102: Valid | H102: 4.34 | I102: 6.6 | J102: Valid | K102: 6.56 | N102: 3.59 | O102: 4.34 | P102: 6.6 | Q102: 6.56 | R102: 6.6 | S102: 6.56 | T102: 3.59 | U102: 4.34
A103: 2019 | B103: 11 | C103: 5 | D103: 5 | E103: 43774.20833 | F103: -1.88 | G103: Valid | H103: 4.08 | I103: 10.38 | J103: Valid | K103: 7.01 | N103: -1.88 | O103: 4.08 | P103: 10.38 | Q103: 7.01 | R103: 10.38 | S103: 7.01 | T103: -1.88 | U103: 4.08
A104: 2019 | B104: 11 | C104: 5 | D104: 6 | E104: 43774.25 | F104: -0.51 | G104: Valid | H104: 3.97 | I104: 29.31 | J104: Valid | K104: 8.06 | N104: -0.51 | O104: 3.97 | P104: 29.31 | Q104: 8.06 | R104: 29.31 | S104: 8.06 | T104: -0.51 | U104: 3.97
A105: 2019 | B105: 11 | C105: 5 | D105: 7 | E105: 43774.29167 | F105: 1.54 | G105: Valid | H105: 3.93 | I105: 17.69 | J105: Valid | K105: 8.62 | N105: 1.54 | O105: 3.93 | P105: 17.69 | Q105: 8.62 | R105: 17.69 | S105: 8.62 | T105: 1.54 | U105: 3.93
A106: 2019 | B106: 11 | C106: 5 | D106: 8 | E106: 43774.33333 | F106: 6.43 | G106: Valid | H106: 3.99 | I106: 17.28 | J106: Valid | K106: 9.04 | N106: 6.43 | O106: 3.99 | P106: 17.28 | Q106: 9.04 | R106: 17.28 | S106: 9.04 | T106: 6.43 | U106: 3.99
A107: 2019 | B107: 11 | C107: 5 | D107: 9 | E107: 43774.375 | F107: 1.9 | G107: Valid | H107: 3.92 | I107: 6.02 | J107: Valid | K107: 9.05 | N107: 1.9 | O107: 3.92 | P107: 6.02 | Q107: 9.05 | R107: 6.02 | S107: 9.05 | T107: 1.9 | U107: 3.92
A108: 2019 | B108: 11 | C108: 5 | D108: 10 | E108: 43774.41667 | F108: 5.27 | G108: Valid | H108: 4.08 | I108: 11.13 | J108: Valid | K108: 9.37 | N108: 5.27 | O108: 4.08 | P108: 11.13 | Q108: 9.37 | R108: 11.13 | S108: 9.37 | T108: 5.27 | U108: 4.08
A109: 2019 | B109: 11 | C109: 5 | D109: 11 | E109: 43774.45833 | F109: -2.13 | G109: Valid | H109: 3.93 | I109: -1.82 | J109: Valid | K109: 9.23 | N109: -2.13 | O109: 3.93 | P109: -1.82 | Q109: 9.23 | R109: -1.82 | S109: 9.23 | T109: -2.13 | U109: 3.93
A110: 2019 | B110: 11 | C110: 5 | D110: 12 | E110: 43774.5 | F110: -2.28 | G110: Valid | H110: 3.9 | I110: -8.99 | J110: Valid | K110: 8.82 | N110: -2.28 | O110: 3.9 | P110: -8.99 | Q110: 8.82 | R110: -8.99 | S110: 8.82 | T110: -2.28 | U110: 3.9
A111: 2019 | B111: 11 | C111: 5 | D111: 13 | E111: 43774.54167 | F111: =NA() ->  | G111: Invalid | H111: =NA() ->  | I111: =NA() ->  | J111: Invalid | K111: =NA() ->  | L111: Pump Failure | M111: High negative removed
A112: 2019 | B112: 11 | C112: 5 | D112: 14 | E112: 43774.58333 | F112: 5.87 | G112: Valid | H112: 3.84 | I112: 10.07 | J112: Valid | K112: 7.85 | N112: 5.87 | O112: 3.84 | P112: 10.07 | Q112: 7.85 | R112: 10.07 | S112: 7.85 | T112: 5.87 | U112: 3.84
A113: 2019 | B113: 11 | C113: 5 | D113: 15 | E113: 43774.625 | F113: 3.83 | G113: Valid | H113: 3.6 | I113: 6.35 | J113: Valid | K113: 7.59 | N113: 3.83 | O113: 3.6 | P113: 6.35 | Q113: 7.59 | R113: 6.35 | S113: 7.59 | T113: 3.83 | U113: 3.6
A114: 2019 | B114: 11 | C114: 5 | D114: 16 | E114: 43774.66667 | F114: 5.84 | G114: Valid | H114: 3.43 | I114: 10.99 | J114: Valid | K114: 7.57 | N114: 5.84 | O114: 3.43 | P114: 10.99 | Q114: 7.57 | R114: 10.99 | S114: 7.57 | T114: 5.84 | U114: 3.43
A115: 2019 | B115: 11 | C115: 5 | D115: 17 | E115: 43774.70833 | F115: =NA() ->  | G115: Invalid | H115: =NA() ->  | I115: =NA() ->  | J115: Invalid | K115: =NA() ->  | L115: Pump Failure | M115: High negative removed
A116: 2019 | B116: 11 | C116: 5 | D116: 18 | E116: 43774.75 | F116: 3.81 | G116: Valid | H116: 3.14 | I116: 5.19 | J116: Valid | K116: 7.12 | N116: 3.81 | O116: 3.14 | P116: 5.19 | Q116: 7.12 | R116: 5.19 | S116: 7.12 | T116: 3.81 | U116: 3.14
A117: 2019 | B117: 11 | C117: 5 | D117: 19 | E117: 43774.79167 | F117: -0.46 | G117: Valid | H117: 2.87 | I117: 3.66 | J117: Valid | K117: 6.98 | N117: -0.46 | O117: 2.87 | P117: 3.66 | Q117: 6.98 | R117: 3.66 | S117: 6.98 | T117: -0.46 | U117: 2.87
A118: 2019 | B118: 11 | C118: 5 | D118: 20 | E118: 43774.83333 | F118: 7.73 | G118: Valid | H118: 2.87 | I118: 10.32 | J118: Valid | K118: 6.92 | N118: 7.73 | O118: 2.87 | P118: 10.32 | Q118: 6.92 | R118: 10.32 | S118: 6.92 | T118: 7.73 | U118: 2.87
A119: 2019 | B119: 11 | C119: 5 | D119: 21 | E119: 43774.875 | F119: 0.08 | G119: Valid | H119: 2.66 | I119: 3.09 | J119: Valid | K119: 6.71 | N119: 0.08 | O119: 2.66 | P119: 3.09 | Q119: 6.71 | R119: 3.09 | S119: 6.71 | T119: 0.08 | U119: 2.66
A120: 2019 | B120: 11 | C120: 5 | D120: 22 | E120: 43774.91667 | F120: 2.93 | G120: Valid | H120: 2.74 | I120: 7.38 | J120: Valid | K120: 6.82 | N120: 2.93 | O120: 2.74 | P120: 7.38 | Q120: 6.82 | R120: 7.38 | S120: 6.82 | T120: 2.93 | U120: 2.74
A121: 2019 | B121: 11 | C121: 5 | D121: 23 | E121: 43774.95833 | F121: 3.24 | G121: Valid | H121: 2.78 | I121: 6.23 | J121: Valid | K121: 6.86 | N121: 3.24 | O121: 2.78 | P121: 6.23 | Q121: 6.86 | R121: 6.23 | S121: 6.86 | T121: 3.24 | U121: 2.78
A122: 2019 | B122: 11 | C122: 6 | D122: 0 | E122: 43775 | F122: 5.62 | G122: Valid | H122: 2.74 | I122: 8.66 | J122: Valid | K122: 6.81 | N122: 5.62 | O122: 2.74 | P122: 8.66 | Q122: 6.81 | R122: 8.66 | S122: 6.81 | T122: 5.62 | U122: 2.74
A123: 2019 | B123: 11 | C123: 6 | D123: 1 | E123: 43775.04167 | F123: 0.81 | G123: Valid | H123: 2.69 | I123: 4.89 | J123: Valid | K123: 6.81 | N123: 0.81 | O123: 2.69 | P123: 4.89 | Q123: 6.81 | R123: 4.89 | S123: 6.81 | T123: 0.81 | U123: 2.69
A124: 2019 | B124: 11 | C124: 6 | D124: 2 | E124: 43775.08333 | F124: 0.7 | G124: Valid | H124: 2.52 | I124: 3.9 | J124: Valid | K124: 6.69 | N124: 0.7 | O124: 2.52 | P124: 3.9 | Q124: 6.69 | R124: 3.9 | S124: 6.69 | T124: 0.7 | U124: 2.52
A125: 2019 | B125: 11 | C125: 6 | D125: 3 | E125: 43775.125 | F125: 1.72 | G125: Valid | H125: 2.44 | I125: 5.47 | J125: Valid | K125: 6.66 | N125: 1.72 | O125: 2.44 | P125: 5.47 | Q125: 6.66 | R125: 5.47 | S125: 6.66 | T125: 1.72 | U125: 2.44
A126: 2019 | B126: 11 | C126: 6 | D126: 4 | E126: 43775.16667 | F126: 0.31 | G126: Valid | H126: 2.29 | I126: 4.34 | J126: Valid | K126: 6.57 | N126: 0.31 | O126: 2.29 | P126: 4.34 | Q126: 6.57 | R126: 4.34 | S126: 6.57 | T126: 0.31 | U126: 2.29
A127: 2019 | B127: 11 | C127: 6 | D127: 5 | E127: 43775.20833 | F127: -1.87 | G127: Valid | H127: 2.29 | I127: -0.63 | J127: Valid | K127: 6.11 | N127: -1.87 | O127: 2.29 | P127: -0.63 | Q127: 6.11 | R127: -0.63 | S127: 6.11 | T127: -1.87 | U127: 2.29
A128: 2019 | B128: 11 | C128: 6 | D128: 6 | E128: 43775.25 | F128: 2.69 | G128: Valid | H128: 2.44 | I128: 7.63 | J128: Valid | K128: 5.2 | N128: 2.69 | O128: 2.44 | P128: 7.63 | Q128: 5.2 | R128: 7.63 | S128: 5.2 | T128: 2.69 | U128: 2.44
A129: 2019 | B129: 11 | C129: 6 | D129: 7 | E129: 43775.29167 | F129: =NA() ->  | G129: Invalid | H129: =NA() ->  | I129: =NA() ->  | J129: Invalid | K129: =NA() ->  | L129: Pump Failure | M129: High negative removed
A130: 2019 | B130: 11 | C130: 6 | D130: 8 | E130: 43775.33333 | F130: 3.51 | G130: Valid | H130: 2.34 | I130: 10.49 | J130: Valid | K130: 4.14 | N130: =IF(G130="Valid", F130, NA()) -> 3.51 | O130: =IF(G130="Valid", H130, NA()) -> 2.34 | P130: =IF(J130="Valid", I130, NA()) -> 10.49 | Q130: =IF(J130="Valid", K130, NA()) -> 4.14 | R130: 10.49 | S130: 4.14 | T130: 3.51 | U130: 2.34
A131: 2019 | B131: 11 | C131: 6 | D131: 9 | E131: 43775.375 | F131: 6.2 | G131: Valid | H131: 2.54 | I131: 13.18 | J131: Valid | K131: 4.44 | N131: 6.2 | O131: 2.54 | P131: 13.18 | Q131: 4.44 | R131: 13.18 | S131: 4.44 | T131: 6.2 | U131: 2.54
A132: =A131 -> 2019 | B132: 11 | C132: 6 | D132: =IF(D131=23,0,D131+1) -> 10 | E132: =E131+0.0416666666666666 -> 43775.41667 | F132: 8.52 | G132: Valid | H132: 2.7 | I132: 15.29 | J132: Valid | K132: 4.62 | N132: 8.52 | O132: 2.7 | P132: 15.29 | Q132: 4.62 | R132: 15.29 | S132: 4.62 | T132: 8.52 | U132: 2.7
A133: 2019 | B133: 11 | C133: 6 | D133: 11 | E133: 43775.45833 | F133: 4.99 | G133: Valid | H133: 3.04 | I133: 12.43 | J133: Valid | K133: 5.21 | N133: 4.99 | O133: 3.04 | P133: 12.43 | Q133: 5.21 | R133: 12.43 | S133: 5.21 | T133: 4.99 | U133: 3.04
A134: 2019 | B134: 11 | C134: 6 | D134: 12 | E134: 43775.5 | F134: -1.87 | G134: Valid | H134: 3.06 | I134: 2.94 | J134: Valid | K134: 5.71 | N134: -1.87 | O134: 3.06 | P134: 2.94 | Q134: 5.71 | R134: 2.94 | S134: 5.71 | T134: -1.87 | U134: 3.06
A135: 2019 | B135: 11 | C135: 6 | D135: 13 | E135: 43775.54167 | F135: 0.06 | G135: Valid | H135: 2.92 | I135: 4.69 | J135: Valid | K135: 6.56 | N135: 0.06 | O135: 2.92 | P135: 4.69 | Q135: 6.56 | R135: 4.69 | S135: 6.56 | T135: 0.06 | U135: 2.92
A136: 2019 | B136: 11 | C136: 6 | D136: 14 | E136: 43775.58333 | F136: -0.98 | G136: Valid | H136: 2.61 | I136: 4.34 | J136: Valid | K136: 6.32 | N136: -0.98 | O136: 2.61 | P136: 4.34 | Q136: 6.32 | R136: 4.34 | S136: 6.32 | T136: -0.98 | U136: 2.61
A137: 2019 | B137: 11 | C137: 6 | D137: 15 | E137: 43775.625 | F137: 1.7 | G137: Valid | H137: 2.51 | I137: 8.1 | J137: Valid | K137: 6.4 | N137: 1.7 | O137: 2.51 | P137: 8.1 | Q137: 6.4 | R137: 8.1 | S137: 6.4 | T137: 1.7 | U137: 2.51
A138: 2019 | B138: 11 | C138: 6 | D138: 16 | E138: 43775.66667 | F138: 9.16 | G138: Valid | H138: 2.66 | I138: 14.7 | J138: Valid | K138: 6.55 | N138: 9.16 | O138: 2.66 | P138: 14.7 | Q138: 6.55 | R138: 14.7 | S138: 6.55 | T138: 9.16 | U138: 2.66
A139: 2019 | B139: 11 | C139: 6 | D139: 17 | E139: 43775.70833 | F139: 8.22 | G139: Valid | H139: 2.91 | I139: 13.87 | J139: Valid | K139: 7.05 | N139: 8.22 | O139: 2.91 | P139: 13.87 | Q139: 7.05 | R139: 13.87 | S139: 7.05 | T139: 8.22 | U139: 2.91
A140: 2019 | B140: 11 | C140: 6 | D140: 18 | E140: 43775.75 | F140: 2.37 | G140: Valid | H140: 2.84 | I140: 12.32 | J140: Valid | K140: 7.35 | N140: 2.37 | O140: 2.84 | P140: 12.32 | Q140: 7.35 | R140: 12.32 | S140: 7.35 | T140: 2.37 | U140: 2.84
A141: 2019 | B141: 11 | C141: 6 | D141: 19 | E141: 43775.79167 | F141: 10.52 | G141: Valid | H141: 3.32 | I141: 14.79 | J141: Valid | K141: 7.81 | N141: 10.52 | O141: 3.32 | P141: 14.79 | Q141: 7.81 | R141: 14.79 | S141: 7.81 | T141: 10.52 | U141: 3.32
A142: 2019 | B142: 11 | C142: 6 | D142: 20 | E142: 43775.83333 | F142: 5.4 | G142: Valid | H142: 3.22 | I142: 10.78 | J142: Valid | K142: 7.83 | N142: 5.4 | O142: 3.22 | P142: 10.78 | Q142: 7.83 | R142: 10.78 | S142: 7.83 | T142: 5.4 | U142: 3.22
A143: 2019 | B143: 11 | C143: 6 | D143: 21 | E143: 43775.875 | F143: 8.44 | G143: Valid | H143: 3.58 | I143: 16.91 | J143: Valid | K143: 8.41 | N143: 8.44 | O143: 3.58 | P143: 16.91 | Q143: 8.41 | R143: 16.91 | S143: 8.41 | T143: 8.44 | U143: 3.58
A144: 2019 | B144: 11 | C144: 6 | D144: 22 | E144: 43775.91667 | F144: 3.79 | G144: Valid | H144: 3.62 | I144: 10.44 | J144: Valid | K144: 8.53 | N144: 3.79 | O144: 3.62 | P144: 10.44 | Q144: 8.53 | R144: 10.44 | S144: 8.53 | T144: 3.79 | U144: 3.62
A145: 2019 | B145: 11 | C145: 6 | D145: 23 | E145: 43775.95833 | F145: 0.54 | G145: Valid | H145: 3.5 | I145: 5.5 | J145: Valid | K145: 8.5 | N145: 0.54 | O145: 3.5 | P145: 5.5 | Q145: 8.5 | R145: 5.5 | S145: 8.5 | T145: 0.54 | U145: 3.5
A146: 2019 | B146: 11 | C146: 7 | D146: 0 | E146: 43776 | F146: 3.44 | G146: Valid | H146: 3.41 | I146: 17.1 | J146: Valid | K146: 8.85 | N146: 3.44 | O146: 3.41 | P146: 17.1 | Q146: 8.85 | R146: 17.1 | S146: 8.85 | T146: 3.44 | U146: 3.41
A147: 2019 | B147: 11 | C147: 7 | D147: 1 | E147: 43776.04167 | F147: 1.54 | G147: Valid | H147: 3.44 | I147: 4.89 | J147: Valid | K147: 8.85 | N147: 1.54 | O147: 3.44 | P147: 4.89 | Q147: 8.85 | R147: 4.89 | S147: 8.85 | T147: 1.54 | U147: 3.44
A148: 2019 | B148: 11 | C148: 7 | D148: 2 | E148: 43776.08333 | F148: 2.94 | G148: Valid | H148: 3.54 | I148: 8.3 | J148: Valid | K148: 9.04 | N148: 2.94 | O148: 3.54 | P148: 8.3 | Q148: 9.04 | R148: 8.3 | S148: 9.04 | T148: 2.94 | U148: 3.54
A149: 2019 | B149: 11 | C149: 7 | D149: 3 | E149: 43776.125 | F149: 0.61 | G149: Valid | H149: 3.49 | I149: 4.64 | J149: Valid | K149: 9 | N149: 0.61 | O149: 3.49 | P149: 4.64 | Q149: 9 | R149: 4.64 | S149: 9 | T149: 0.61 | U149: 3.49
A150: 2019 | B150: 11 | C150: 7 | D150: 4 | E150: 43776.16667 | F150: 2.55 | G150: Valid | H150: 3.59 | I150: 7.48 | J150: Valid | K150: 9.13 | N150: 2.55 | O150: 3.59 | P150: 7.48 | Q150: 9.13 | R150: 7.48 | S150: 9.13 | T150: 2.55 | U150: 3.59
A151: 2019 | B151: 11 | C151: 7 | D151: 5 | E151: 43776.20833 | F151: 8.43 | G151: Valid | H151: 4.03 | I151: 12.26 | J151: Valid | K151: 9.67 | N151: 8.43 | O151: 4.03 | P151: 12.26 | Q151: 9.67 | R151: 12.26 | S151: 9.67 | T151: 8.43 | U151: 4.03
A152: 2019 | B152: 11 | C152: 7 | D152: 6 | E152: 43776.25 | F152: 7.96 | G152: Valid | H152: 4.26 | I152: 15.79 | J152: Valid | K152: 10.01 | N152: 7.96 | O152: 4.26 | P152: 15.79 | Q152: 10.01 | R152: 15.79 | S152: 10.01 | T152: 7.96 | U152: 4.26
A153: 2019 | B153: 11 | C153: 7 | D153: 7 | E153: 43776.29167 | F153: =NA() ->  | G153: Invalid | H153: =NA() ->  | I153: =NA() ->  | J153: Invalid | K153: =NA() ->  | L153: Pump Failure | M153: High negative removed
A154: 2019 | B154: 11 | C154: 7 | D154: 8 | E154: 43776.33333 | F154: 6.94 | G154: Valid | H154: 4.41 | I154: 17.52 | J154: Valid | K154: 10.7 | N154: 6.94 | O154: 4.41 | P154: 17.52 | Q154: 10.7 | R154: 17.52 | S154: 10.7 | T154: 6.94 | U154: 4.41
A155: 2019 | B155: =B154 -> 11 | C155: =C131+1 -> 7 | D155: 9 | E155: 43776.375 | F155: 6.55 | G155: Valid | H155: 4.43 | I155: 22.92 | J155: Valid | K155: 11.1 | N155: 6.55 | O155: 4.43 | P155: 22.92 | Q155: 11.1 | R155: 22.92 | S155: 11.1 | T155: 6.55 | U155: 4.43
A156: 2019 | B156: 11 | C156: 7 | D156: 10 | E156: 43776.41667 | F156: 11.03 | G156: Valid | H156: 4.54 | I156: 36.95 | J156: Valid | K156: 12 | N156: 11.03 | O156: 4.54 | P156: 36.95 | Q156: 12 | R156: 36.95 | S156: 12 | T156: 11.03 | U156: 4.54
A157: 2019 | B157: 11 | C157: 7 | D157: 11 | E157: 43776.45833 | F157: 5.63 | G157: Valid | H157: 4.56 | I157: 123.39 | J157: Valid | K157: 16.63 | N157: 5.63 | O157: 4.56 | P157: 123.39 | Q157: 16.63 | R157: 123.39 | S157: 16.63 | T157: 5.63 | U157: 4.56
A158: 2019 | B158: 11 | C158: 7 | D158: 12 | E158: 43776.5 | F158: 15.97 | G158: Valid | H158: 5.34 | I158: 189.32 | J158: Valid | K158: 24.39 | N158: 15.97 | O158: 5.34 | P158: 189.32 | Q158: 24.39 | R158: 189.32 | S158: 24.39 | T158: 15.97 | U158: 5.34
A159: 2019 | B159: 11 | C159: 7 | D159: 13 | E159: 43776.54167 | F159: 78 | G159: Valid | H159: 8.73 | I159: 1234.38 | J159: Valid | K159: 75.63 | N159: 78 | O159: 8.73 | P159: 1234.38 | Q159: 75.63 | R159: 1234.38 | S159: 75.63 | T159: 78 | U159: 8.73
A160: 2019 | B160: 11 | C160: 7 | D160: 14 | E160: 43776.58333 | F160: 62.74 | G160: Valid | H160: 11.5 | I160: 822.97 | J160: Valid | K160: 109.74 | N160: 62.74 | O160: 11.5 | P160: 822.97 | Q160: 109.74 | R160: 822.97 | S160: 109.74 | T160: 62.74 | U160: 11.5
A161: 2019 | B161: 11 | C161: 7 | D161: 15 | E161: 43776.625 | F161: 27.24 | G161: Valid | H161: 12.61 | I161: 332.33 | J161: Valid | K161: 123.25 | N161: 27.24 | O161: 12.61 | P161: 332.33 | Q161: 123.25 | R161: 332.33 | S161: 123.25 | T161: 27.24 | U161: 12.61
A162: 2019 | B162: 11 | C162: 7 | D162: 16 | E162: 43776.66667 | F162: 26.28 | G162: Valid | H162: 13.35 | I162: 160.63 | J162: Valid | K162: 129.33 | N162: 26.28 | O162: 13.35 | P162: 160.63 | Q162: 129.33 | R162: 160.63 | S162: 129.33 | T162: 26.28 | U162: 13.35
A163: 2019 | B163: 11 | C163: 7 | D163: 17 | E163: 43776.70833 | F163: 30.28 | G163: Valid | H163: 14.31 | I163: 161.91 | J163: Valid | K163: 135.5 | N163: 30.28 | O163: 14.31 | P163: 161.91 | Q163: 135.5 | R163: 161.91 | S163: 135.5 | T163: 30.28 | U163: 14.31
A164: 2019 | B164: 11 | C164: 7 | D164: 18 | E164: 43776.75 | F164: 17.81 | G164: Valid | H164: 14.98 | I164: 131.86 | J164: Valid | K164: 140.48 | N164: 17.81 | O164: 14.98 | P164: 131.86 | Q164: 140.48 | R164: 131.86 | S164: 140.48 | T164: 17.81 | U164: 14.98
A165: 2019 | B165: 11 | C165: 7 | D165: 19 | E165: 43776.79167 | F165: 21.5 | G165: Valid | H165: 15.46 | I165: 126.76 | J165: Valid | K165: 145.15 | N165: 21.5 | O165: 15.46 | P165: 126.76 | Q165: 145.15 | R165: 126.76 | S165: 145.15 | T165: 21.5 | U165: 15.46
A166: 2019 | B166: 11 | C166: 7 | D166: 20 | E166: 43776.83333 | F166: 13.65 | G166: Valid | H166: 15.82 | I166: 95.7 | J166: Valid | K166: 148.68 | N166: 13.65 | O166: 15.82 | P166: 95.7 | Q166: 148.68 | R166: 95.7 | S166: 148.68 | T166: 13.65 | U166: 15.82
A167: 2019 | B167: 11 | C167: 7 | D167: 21 | E167: 43776.875 | F167: 14.24 | G167: Valid | H167: 16.07 | I167: 80.64 | J167: Valid | K167: 151.34 | N167: 14.24 | O167: 16.07 | P167: 80.64 | Q167: 151.34 | R167: 80.64 | S167: 151.34 | T167: 14.24 | U167: 16.07
A168: 2019 | B168: 11 | C168: 7 | D168: 22 | E168: 43776.91667 | F168: 11.41 | G168: Valid | H168: 16.4 | I168: 71.51 | J168: Valid | K168: 153.88 | N168: 11.41 | O168: 16.4 | P168: 71.51 | Q168: 153.88 | R168: 71.51 | S168: 153.88 | T168: 11.41 | U168: 16.4
A169: 2019 | B169: 11 | C169: 7 | D169: 23 | E169: 43776.95833 | F169: 13.17 | G169: Valid | H169: 16.95 | I169: 81.44 | J169: Valid | K169: 157.05 | N169: 13.17 | O169: 16.95 | P169: 81.44 | Q169: 157.05 | R169: 81.44 | S169: 157.05 | T169: 13.17 | U169: 16.95
A170: 2019 | B170: 11 | C170: 8 | D170: 0 | E170: 43777 | F170: 15.73 | G170: Valid | H170: 17.49 | I170: 75.84 | J170: Valid | K170: 159.5 | N170: 15.73 | O170: 17.49 | P170: 75.84 | Q170: 159.5 | R170: 75.84 | S170: 159.5 | T170: 15.73 | U170: 17.49
A171: 2019 | B171: 11 | C171: 8 | D171: 1 | E171: 43777.04167 | F171: 17.19 | G171: Valid | H171: 18.17 | I171: 109.22 | J171: Valid | K171: 163.84 | N171: 17.19 | O171: 18.17 | P171: 109.22 | Q171: 163.84 | R171: 109.22 | S171: 163.84 | T171: 17.19 | U171: 18.17
A172: 2019 | B172: 11 | C172: 8 | D172: 2 | E172: 43777.08333 | F172: 24.14 | G172: Valid | H172: 19.09 | I172: 133.02 | J172: Valid | K172: 169.04 | N172: 24.14 | O172: 19.09 | P172: 133.02 | Q172: 169.04 | R172: 133.02 | S172: 169.04 | T172: 24.14 | U172: 19.09
A173: 2019 | B173: 11 | C173: 8 | D173: 3 | E173: 43777.125 | F173: 13.7 | G173: Valid | H173: 19.66 | I173: 79.69 | J173: Valid | K173: 172.17 | N173: 13.7 | O173: 19.66 | P173: 79.69 | Q173: 172.17 | R173: 79.69 | S173: 172.17 | T173: 13.7 | U173: 19.66
A174: 2019 | B174: 11 | C174: 8 | D174: 4 | E174: 43777.16667 | F174: 10.54 | G174: Valid | H174: 20.01 | I174: 76.02 | J174: Valid | K174: 175.02 | N174: 10.54 | O174: 20.01 | P174: 76.02 | Q174: 175.02 | R174: 76.02 | S174: 175.02 | T174: 10.54 | U174: 20.01
A175: 2019 | B175: 11 | C175: 8 | D175: 5 | E175: 43777.20833 | F175: 6.5 | G175: Valid | H175: 19.92 | I175: 59.8 | J175: Valid | K175: 177 | N175: 6.5 | O175: 19.92 | P175: 59.8 | Q175: 177 | R175: 59.8 | S175: 177 | T175: 6.5 | U175: 19.92
A176: 2019 | B176: 11 | C176: 8 | D176: 6 | E176: 43777.25 | F176: 19.53 | G176: Valid | H176: 20.42 | I176: 70.24 | J176: Valid | K176: 179.27 | N176: 19.53 | O176: 20.42 | P176: 70.24 | Q176: 179.27 | R176: 70.24 | S176: 179.27 | T176: 19.53 | U176: 20.42
A177: 2019 | B177: 11 | C177: 8 | D177: 7 | E177: 43777.29167 | F177: 12.9 | G177: Valid | H177: 20.11 | I177: 56.67 | J177: Valid | K177: 181.28 | N177: 12.9 | O177: 20.11 | P177: 56.67 | Q177: 181.28 | R177: 56.67 | S177: 181.28 | T177: 12.9 | U177: 20.11
A178: 2019 | B178: 11 | C178: 8 | D178: 8 | E178: 43777.33333 | F178: 11.4 | G178: Valid | H178: 20.3 | I178: 49.03 | J178: Valid | K178: 182.59 | N178: 11.4 | O178: 20.3 | P178: 49.03 | Q178: 182.59 | R178: 49.03 | S178: 182.59 | T178: 11.4 | U178: 20.3
A179: 2019 | B179: 11 | C179: 8 | D179: 9 | E179: 43777.375 | F179: 9.47 | G179: Valid | H179: 20.42 | I179: 27.38 | J179: Valid | K179: 182.78 | N179: 9.47 | O179: 20.42 | P179: 27.38 | Q179: 182.78 | R179: 27.38 | S179: 182.78 | T179: 9.47 | U179: 20.42
A180: 2019 | B180: 11 | C180: 8 | D180: 10 | E180: 43777.41667 | F180: 7.47 | G180: Valid | H180: 20.27 | I180: 25.3 | J180: Valid | K180: 182.29 | N180: 7.47 | O180: 20.27 | P180: 25.3 | Q180: 182.29 | R180: 25.3 | S180: 182.29 | T180: 7.47 | U180: 20.27
A181: 2019 | B181: 11 | C181: 8 | D181: 11 | E181: 43777.45833 | F181: 8.79 | G181: Valid | H181: 20.4 | I181: 34.8 | J181: Valid | K181: 178.6 | N181: 8.79 | O181: 20.4 | P181: 34.8 | Q181: 178.6 | R181: 34.8 | S181: 178.6 | T181: 8.79 | U181: 20.4
A182: 2019 | B182: 11 | C182: 8 | D182: 12 | E182: 43777.5 | F182: 4.63 | G182: Valid | H182: 19.93 | I182: 36.46 | J182: Valid | K182: 172.23 | N182: 4.63 | O182: 19.93 | P182: 36.46 | Q182: 172.23 | R182: 36.46 | S182: 172.23 | T182: 4.63 | U182: 19.93
A183: 2019 | B183: 11 | C183: 8 | D183: 13 | E183: 43777.54167 | F183: 7.54 | G183: Valid | H183: 16.99 | I183: 45.56 | J183: Valid | K183: 122.7 | N183: 7.54 | O183: 16.99 | P183: 45.56 | Q183: 122.7 | R183: 45.56 | S183: 122.7 | T183: 7.54 | U183: 16.99
A184: 2019 | B184: 11 | C184: 8 | D184: 14 | E184: 43777.58333 | F184: 7.98 | G184: Valid | H184: 14.71 | I184: 80.52 | J184: Valid | K184: 91.76 | N184: 7.98 | O184: 14.71 | P184: 80.52 | Q184: 91.76 | R184: 80.52 | S184: 91.76 | T184: 7.98 | U184: 14.71
A185: 2019 | B185: 11 | C185: 8 | D185: 15 | E185: 43777.625 | F185: 5.28 | G185: Valid | H185: 13.8 | I185: 78.45 | J185: Valid | K185: 81.19 | N185: 5.28 | O185: 13.8 | P185: 78.45 | Q185: 81.19 | R185: 78.45 | S185: 81.19 | T185: 5.28 | U185: 13.8
A186: 2019 | B186: 11 | C186: 8 | D186: 16 | E186: 43777.66667 | F186: 23.92 | G186: Valid | H186: 13.7 | I186: 210.21 | J186: Valid | K186: 83.25 | N186: 23.92 | O186: 13.7 | P186: 210.21 | Q186: 83.25 | R186: 210.21 | S186: 83.25 | T186: 23.92 | U186: 13.7
A187: 2019 | B187: 11 | C187: 8 | D187: 17 | E187: 43777.70833 | F187: 26.84 | G187: Valid | H187: 13.56 | I187: 263.97 | J187: Valid | K187: 87.5 | N187: 26.84 | O187: 13.56 | P187: 263.97 | Q187: 87.5 | R187: 263.97 | S187: 87.5 | T187: 26.84 | U187: 13.56
A188: 2019 | B188: 11 | C188: 8 | D188: 18 | E188: 43777.75 | F188: 10.09 | G188: Valid | H188: 13.23 | I188: 69.32 | J188: Valid | K188: 84.9 | N188: 10.09 | O188: 13.23 | P188: 69.32 | Q188: 84.9 | R188: 69.32 | S188: 84.9 | T188: 10.09 | U188: 13.23
A189: 2019 | B189: 11 | C189: 8 | D189: 19 | E189: 43777.79167 | F189: 9.01 | G189: Valid | H189: 12.71 | I189: 80.17 | J189: Valid | K189: 82.96 | N189: 9.01 | O189: 12.71 | P189: 80.17 | Q189: 82.96 | R189: 80.17 | S189: 82.96 | T189: 9.01 | U189: 12.71
A190: 2019 | B190: 11 | C190: 8 | D190: 20 | E190: 43777.83333 | F190: 12.52 | G190: Valid | H190: 12.67 | I190: 133.7 | J190: Valid | K190: 84.54 | N190: 12.52 | O190: 12.67 | P190: 133.7 | Q190: 84.54 | R190: 133.7 | S190: 84.54 | T190: 12.52 | U190: 12.67
A191: 2019 | B191: 11 | C191: 8 | D191: 21 | E191: 43777.875 | F191: =NA() ->  | G191: Invalid | H191: =NA() ->  | I191: =NA() ->  | J191: Invalid | K191: =NA() ->  | L191: Power Failure | M191: power outage
A192: 2019 | B192: 11 | C192: 8 | D192: 22 | E192: 43777.91667 | F192: =NA() ->  | G192: Invalid | H192: =NA() ->  | I192: =NA() ->  | J192: Invalid | K192: =NA() ->  | L192: Power Failure | M192: power outage
A193: 2019 | B193: 11 | C193: 8 | D193: 23 | E193: 43777.95833 | F193: =NA() ->  | G193: Invalid | H193: =NA() ->  | I193: =NA() ->  | J193: Invalid | K193: =NA() ->  | L193: Power Failure | M193: power outage
A194: 2019 | B194: 11 | C194: 9 | D194: 0 | E194: 43778 | F194: 17.18 | G194: Valid | H194: 12.7 | I194: 192.72 | J194: Valid | K194: 91.06 | N194: =IF(G194="Valid", F194, NA()) -> 17.18 | O194: =IF(G194="Valid", H194, NA()) -> 12.7 | P194: =IF(J194="Valid", I194, NA()) -> 192.72 | Q194: =IF(J194="Valid", K194, NA()) -> 91.06 | R194: 192.72 | S194: 91.06 | T194: 17.18 | U194: 12.7
A195: 2019 | B195: 11 | C195: 9 | D195: 1 | E195: 43778.04167 | F195: 13.28 | G195: Valid | H195: 12.51 | I195: 185.82 | J195: Valid | K195: 94.71 | N195: 13.28 | O195: 12.51 | P195: 185.82 | Q195: 94.71 | R195: 185.82 | S195: 94.71 | T195: 13.28 | U195: 12.51
A196: =A195 -> 2019 | B196: 11 | C196: 9 | D196: =IF(D195=23,0,D195+1) -> 2 | E196: =E195+0.0416666666666666 -> 43778.08333 | F196: 13.57 | G196: Valid | H196: 12.01 | I196: 165.84 | J196: Valid | K196: 96.27 | N196: 13.57 | O196: 12.01 | P196: 165.84 | Q196: 96.27 | R196: 165.84 | S196: 96.27 | T196: 13.57 | U196: 12.01
A197: 2019 | B197: 11 | C197: 9 | D197: 3 | E197: 43778.125 | F197: 3.96 | G197: Valid | H197: 11.54 | I197: 91.69 | J197: Valid | K197: 96.84 | N197: 3.96 | O197: 11.54 | P197: 91.69 | Q197: 96.84 | R197: 91.69 | S197: 96.84 | T197: 3.96 | U197: 11.54
A198: 2019 | B198: 11 | C198: 9 | D198: 4 | E198: 43778.16667 | F198: 0.58 | G198: Valid | H198: 11.07 | I198: 56.07 | J198: Valid | K198: 95.89 | N198: 0.58 | O198: 11.07 | P198: 56.07 | Q198: 95.89 | R198: 56.07 | S198: 95.89 | T198: 0.58 | U198: 11.07
A199: 2019 | B199: 11 | C199: 9 | D199: 5 | E199: 43778.20833 | F199: 0.99 | G199: Valid | H199: 10.81 | I199: 32.64 | J199: Valid | K199: 94.6 | N199: 0.99 | O199: 10.81 | P199: 32.64 | Q199: 94.6 | R199: 32.64 | S199: 94.6 | T199: 0.99 | U199: 10.81
A200: 2019 | B200: 11 | C200: 9 | D200: 6 | E200: 43778.25 | F200: 2.83 | G200: Valid | H200: 10.01 | I200: 25.15 | J200: Valid | K200: 92.45 | N200: 2.83 | O200: 10.01 | P200: 25.15 | Q200: 92.45 | R200: 25.15 | S200: 92.45 | T200: 2.83 | U200: 10.01
... 545 more rows

Sheet Raw data_format
A1: Parameter | B1: Format | C1: Comment | D1: Units of measure | E1: Minimum | F1: Maximum
A2: Year | B2: yyyy | C2: 4 integer format | D2: Not applicable | E2: 2015 | F2: Until reporting ceases
A3: Month | B3: mm | C3: 2 integer format | D3: Not applicable | E3: 1 | F3: 12
A4: Day | B4: dd | C4: 2 integer format | D4: Not applicable | E4: 1 | F4: 31
A5: Hour | B5: hh | C5: 2 integer format | D5: Not applicable | E5: 0 | F5: 23
A6: PM10 | B6: 0 | C6: 1 decimal place resolution | D6: µg/m3 | E6: Negative | F6: Instrument specific
A7: PM2.5 | B7: 0 | C7: 2 decimal place resolution | D7: µg/m3 | E7: Negative | F7: Instrument specific
A8: Status | B8: Text | C8: 7 character format | D8: Not applicable | E8: Valid | F8: Invalid
